Cogmind - Beta 13 @@@ ROGUE MODE // 2024.04.28 @ 22:39:22 Player: Olafz Result: Destroyed by S-27 Virus with Autogun Performance ------------- Evolutions (6) 3000 Regions Visited (17) 3400 Robots Destroyed (142) 710 Value Destroyed (4701) 4701 Prototype IDs (30) 600 Alien Tech Used (0) 0 Bonus (147) 147 TOTAL SCORE: 12558 Bonus ------- High Alert Combat Kills 28 Follower Combat Kills 637 Met Data Miner 300 Friendly Fire -818 Cogmind --------- Core Integrity 0/1150 Matter 239/300 Energy 99/100 System Corruption 2% Temperature Cool (0) Movement Core (50) Location -4/Factory Parts ------- > --- POWER (2) -------- (None) > --- PROPULSION (6) --- (None) > --- UTILITY (8) ------ Enhanced Optical Array Advanced Signal Interpreter > --- WEAPON (3) ------- (None) > --- INVENTORY (5) ---- Enhanced Flexi-carbon Leg Advanced Power Amplifier Railgun Improved Plasma Cutter Great Maul Peak State ------------ > --- POWER ------------ Angular-Fission Engine > --- PROPULSION ------- FC-FPD Exoskeleton Field Propulsion Drive > --- UTILITY ---------- Armored Scrap Engine Improved Cryofiber Web Advanced Heat Sink Large Storage Unit Large Storage Unit Enhanced Optical Array Hacking Suite > --- WEAPON ----------- KE Penetrator Construct/C Energy Construct/G > --- INVENTORY -------- Carbon-fiber Leg Advanced Heat Sink Large Storage Unit High-capacity Storage Unit Advanced Energy Well Advanced Particle Charger Transmission Jammer Reaction Control System Phase Shifter Advanced Shield Generator Improved Plasma Cutter Great Maul Great Maul Phasing Sabre Phasing Sabre [Rating: 95] Favorites ----------- Power Constructs Engine Constructs Power Core Light Nuclear Core Reactor Particle Reactor Propulsion Constructs Treads Medium Treads Leg Constructs Hover Unit Gravmag System Flight Unit Field Propulsion Drive Utility Large Storage Unit Device Armored Scrap Engine Storage Large Storage Unit Processor Enhanced Optical Array Hackware Hacking Suite Protection Light Regenerative Plating Weapon Improved Assault Rifle Energy Gun Constructs Ballistic Gun Improved Assault Rifle Ballistic Cannon Constructs Special Weapon Plasma Cutter Impact Weapon Great Maul Slashing Weapon Phasing Sabre Piercing Weapon Spear Build | -11 -10 -9 -9 -8 -8 -8 -6 -6 -6 -6 -5 -5 -5 -5 -5 -5 -4 ------- Run | Yrd Mat Mat Min Mat Sto Rec Fac Low Low Dat Pro Fac Ext Cet Arc Hub Fac Slots Evolved 12 | . . 2 . 2 . . 4 . . . . 2 . . . . 2 Power 1 | . . . . . . . 1 . . . . . . . . . . Propulsion 4 | . . . . 2 . . . . . . . 1 . . . . 1 Utility 6 | . . 2 . . . . 3 . . . . 1 . . . . . Weapon 1 | . . . . . . . . . . . . . . . . . 1 Parts Attached 149 | . 2 11 2 13 20 5 9 3 2 1 6 8 13 6 33 3 12 Power 15 | . . 2 . 1 5 . . . . . . . . . 6 . 1 Engine 8 | . . 2 . . 2 . . . . . . . . . 3 . 1 Core 4 | . . . . 1 3 . . . . . . . . . . . . Reactor 3 | . . . . . . . . . . . . . . . 3 . . Propulsion 31 | . . 4 1 7 5 . . . . . . 1 . . 9 1 3 Treads 8 | . . 1 . . . . . . . . . . . . 5 . 2 Leg 17 | . . 3 1 7 5 . . . . . . . . . . . 1 Wheel . | . . . . . . . . . . . . . . . . . . Hover 5 | . . . . . . . . . . . . . . . 4 1 . Flight 1 | . . . . . . . . . . . . 1 . . . . . Utility 61 | . 2 2 1 3 3 3 9 2 1 1 3 6 6 5 9 2 3 Device 37 | . 1 2 . 1 2 2 6 1 . 1 3 4 5 3 3 1 2 Storage 7 | . 1 . 1 1 . 1 . . 1 . . . 1 1 . . . Processor 6 | . . . . . 1 . 2 1 . . . 1 . . . 1 . Hackware 8 | . . . . . . . 1 . . . . 1 . 1 5 . . Protection 3 | . . . . 1 . . . . . . . . . . 1 . 1 Artifact . | . . . . . . . . . . . . . . . . . . Weapon 42 | . . 3 . 2 7 2 . 1 1 . 3 1 7 1 9 . 5 Energy Gun 8 | . . . . . . . . . 1 . . . . . 6 . 1 Energy Cannon . | . . . . . . . . . . . . . . . . . . Ballistic Gun 14 | . . 3 . 2 5 1 . 1 . . . . . . . . 2 Ballistic Cannon . | . . . . . . . . . . . . . . . . . . Launcher . | . . . . . . . . . . . . . . . . . . Special Weapon 4 | . . . . . 1 . . . . . . . 2 . . . 1 Impact Weapon 10 | . . . . . 1 1 . . . . . 1 4 . 2 . 1 Slashing Weapon 4 | . . . . . . . . . . . 1 . 1 1 1 . . Piercing Weapon 2 | . . . . . . . . . . . 2 . . . . . . Special Melee Weapon . | . . . . . . . . . . . . . . . . . . Unidentified Prototypes 2 | . . . . . . . . . . . . . . . . 1 1 Corrupted Parts 4 | . . . . . . . . . . . . . . 1 3 . . System Corruption 21 | . . . . . . . . . . . . . . 4 17 . . Parts Lost 87 | . . 1 . 10 9 5 4 2 . . 9 3 10 11 5 2 16 Power 9 | . . . . 1 1 . . . . . . . 4 . 1 . 2 Propulsion 25 | . . 1 . 5 4 4 . . . . 2 . 1 2 . . 6 Utility 33 | . . . . 2 1 . 2 . . . 3 3 4 6 3 2 7 Weapon 20 | . . . . 2 3 1 2 2 . . 4 . 1 3 1 . 1 Highest Loss Streak 11 | . . 1 . 7 5 4 2 2 . . 4 3 3 11 4 1 9 To Critical Strikes 7 | . . . . . . . . . . . . . 1 6 . . . Average Slot Usage (%) 68 | . 87 92 100 79 83 61 61 65 65 66 58 58 61 39 69 83 51 Engine 3 | . 14 11 11 2 6 . 1 . . . . 5 2 . 2 5 2 Core 2 | . . . . 5 2 8 4 6 6 6 6 . 2 . . . . Treads 1 | . . . . . . 1 1 . . . . . . . 13 . . Leg 7 | . 28 21 22 23 23 4 . . . . . . 1 5 1 . . Hover 2 | . . . . . . . 1 6 6 6 6 4 . . 5 25 2 Device 14 | . 2 26 30 15 6 9 16 20 20 20 16 16 18 10 5 4 2 Storage 8 | . 14 11 13 11 18 9 6 6 6 6 6 5 5 11 6 5 4 Processor 6 | . . . . . 8 9 7 6 6 6 6 10 5 5 5 7 10 Hackware 4 | . . . . . . . 5 6 6 6 6 4 4 . 9 25 14 Energy Gun 2 | . . . . . . . 6 11 5 6 2 . . . 4 5 . Ballistic Gun 8 | . 28 22 22 16 14 13 2 . 6 6 2 . 2 1 . . 4 Impact Weapon 1 | . . . . . 1 . . . . . . 3 1 1 3 . 3 Naked Turns . | . . . . . . . . . . . . . . . . . . Heaviest Build 80 | 12 28 35 36 37 37 35 49 49 47 42 42 47 69 41 80 36 51 Greatest Support 140 | 20 20 26 26 40 55 33 65 49 49 49 49 46 48 48 140 36 56 Greatest Overweight (x) 11 | . 1 2 1 2 11 9 1 . . . 1 1 6 . 2 . 11 Average Overweight (x) . | . . 1 1 . . . . . . . . . . . . . 2 Largest Inventory Capacity 15 | . 15 15 15 15 15 15 15 15 15 15 15 15 15 15 15 15 15 Average Capacity 14 | . 14 15 15 15 15 15 15 15 15 15 15 15 15 15 15 15 13 Most Carried 15 | . 9 15 15 15 15 15 15 15 15 15 15 13 15 14 15 15 15 Average Carried 12 | . 8 13 14 13 14 14 12 14 13 13 14 9 12 10 11 14 11 Final Capacity 15 | 8 15 15 15 15 15 15 15 15 15 15 15 15 15 15 15 15 5 Final Carried 15 | 6 9 15 15 14 15 14 15 13 14 14 13 9 15 9 15 15 5 Scrap Engine Consumption 130 | . . . . . . 31 43 2 5 . 9 9 31 . . . . Constructs Created 11 | . . . . . . 3 3 . . . 1 1 3 . . . . Constructs Modified 46 | . . . . . . 6 16 5 1 . 1 5 11 1 . . . Class Distribution -------------------- 45% | Construct 23% | Mutant 22% | Scavenger-Mutant 6% | Hacker-Mutant Dominant Class ---------------- Mutant | -10/Materials Scavenger-Mutant | -9/Materials Scavenger-Mutant | -9/Mines Scavenger-Mutant | -8/Materials Mutant | -8/Storage Mutant | -8/Recycling Construct | -6/Factory Construct | -6/Lower Caves Construct | -6/Lower Caves Construct | -6/Data Miner Construct | -5/Proximity Caves Construct | -5/Factory Construct | -5/Extension Mutant | -5/Cetus Scavenger-Mutant | -5/Archives Scavenger-Scout | -5/Hub_04(d) Hacker-Mutant | -4/Factory Resources | -11 -10 -9 -9 -8 -8 -8 -6 -6 -6 -6 -5 -5 -5 -5 -5 -5 -4 ----------- Run | Yrd Mat Mat Min Mat Sto Rec Fac Low Low Dat Pro Fac Ext Cet Arc Hub Fac Matter Collected 3234 | 200 . 334 94 190 570 457 251 31 64 . 75 . 499 . 395 . 74 Remotely . | . . . . . . . . . . . . . . . . . . Salvage Created 6045 | . 79 802 53 428 826 738 1221 69 73 . 301 . 765 . 616 . 74 Parts 351 | . 11 52 9 28 63 27 56 7 7 . 17 . 39 . 27 . 8 Haulers Intercepted 4 | . . 2 . . 2 . . . . . . . . . . . . Recyclers Shooed 8 | . . . . . 1 6 . . . . . . . . . 1 . Parts Field Recycled . | . . . . . . . . . . . . . . . . . . Retrieved Matter . | . . . . . . . . . . . . . . . . . . Parts Self-Destructed 26 | . . . . . . . . 7 10 . 9 . . . . . . Prevented . | . . . . . . . . . . . . . . . . . . Kills | -11 -10 -9 -9 -8 -8 -8 -6 -6 -6 -6 -5 -5 -5 -5 -5 -5 -4 ------- Run | Yrd Mat Mat Min Mat Sto Rec Fac Low Low Dat Pro Fac Ext Cet Arc Hub Fac Combat Hostiles Destroyed 106 | . 6 12 3 10 17 7 20 3 3 . 8 . 10 . 4 . 3 Melee 10 | . . . . . . . . . . . 4 . 4 . 1 . 1 Guns 88 | . 6 11 3 10 17 7 19 3 3 . 4 . 1 . 2 . 2 Cannons 3 | . . . . . . . . . . . . . 3 . . . . AOE 1 | . . 1 . . . . . . . . . . . . . . . Classes Destroyed 15 | . 1 6 . . 1 2 1 . . . 1 . 3 . . . . Worker 6 | . . 2 . 1 1 . 2 . . . . . . . . . . Hauler 4 | . . 2 . . 2 . . . . . . . . . . . . Recycler 9 | . . 2 . . . 5 2 . . . . . . . . . . Operator 9 | . . . . . . . . . . . . . 1 . 8 . . Drone 1 | . . . . . . . . . . . 1 . . . . . . Watcher 5 | . . 2 . . . . 2 . . . . . 1 . . . . Swarmer 37 | . 6 . 3 3 4 . 7 3 3 . 6 . . . . . 2 Grunt 30 | . . 10 . 4 3 . 7 . . . . . 6 . . . . Duelist 1 | . . . . . . . . . . . . . 1 . . . . Protector 1 | . . . . . . 1 . . . . . . . . . . . Sentry 26 | . . 2 . 3 9 4 2 . . . . . 2 . 4 . . Hunter 6 | . . . . . 1 . 2 . . . 1 . 1 . . . 1 Programmer 3 | . . . . . . 2 1 . . . . . . . . . . Heavy 1 | . . . . . . . 1 . . . . . . . . . . Enhanced Grunt 1 | . . . . . . . . . . . 1 . . . . . . Thug 1 | . . . . . . . . . . . . . 1 . . . . Savage 1 | . . . . . . . . . . . . . 1 . . . . Best Kill Streak 9 | . 6 6 3 7 9 4 8 3 3 . 3 . 3 . 3 . 2 Combat Bots Only 9 | . 6 5 3 6 9 4 7 3 3 . 3 . 3 . 1 . 2 Max Kills in Single Turn 3 | . 1 3 1 2 1 1 2 1 2 . 1 . 1 . 1 . 1 Gunslinging 1 | . . . . 1 . . 1 . . . . . . . . . . Exploded 1 | . . 1 . . . . . . . . . . . . . . . Melee 1 | . . . . . . . . . . . 1 . 1 . 1 . 1 Uniques/NPCs Destroyed . | . . . . . . . . . . . . . . . . . . Combat | -11 -10 -9 -9 -8 -8 -8 -6 -6 -6 -6 -5 -5 -5 -5 -5 -5 -4 -------- Run | Yrd Mat Mat Min Mat Sto Rec Fac Low Low Dat Pro Fac Ext Cet Arc Hub Fac Hostile Shots Fired 1356 | . 32 50 10 93 132 54 163 72 14 . 149 . 161 117 73 14 222 Missed 386 | . 7 12 1 24 31 15 51 12 6 . 35 . 54 33 22 5 78 Damage Taken 18193 | . 196 564 67 969 1291 578 1834 1093 123 . 2238 228 2602 2234 1388 180 2608 Core 3429 | . 59 167 7 120 248 101 223 170 16 . 358 . 335 261 173 40 1151 Absorbed by Shields 174 | . . . . . . . . . . . . . 137 37 . . . Redirected to Shielding 9 | . . . . 9 . . . . . . . . . . . . . Regen/Repaired (Parts) 2540 | . . . . . . 157 647 175 166 . 66 318 834 61 . . 116 Core Remaining (%) 45 | 100 76 . 56 . . 14 . . . . 9 . . . . 19 . Volleys Fired 497 | . 21 49 5 43 85 44 92 16 6 . 17 . 59 . 49 1 10 Largest 3 | . 2 2 2 2 2 2 2 2 2 . 2 . 2 . 2 1 3 Hottest 164 | . 40 46 46 46 46 46 104 150 91 . 91 . 132 . 144 94 164 Shots Fired 795 | . 42 98 10 65 151 64 135 31 10 . 28 . 89 . 48 3 21 Gun 725 | . 42 98 10 65 149 64 135 31 10 . 28 . 21 . 48 3 21 Cannon 68 | . . . . . . . . . . . . . 68 . . . . Launcher . | . . . . . . . . . . . . . . . . . . Special 2 | . . . . . 2 . . . . . . . . . . . . Kinetic 591 | . 42 98 10 65 149 64 78 2 6 . 11 . 54 . . . 12 Thermal 181 | . . . . . 2 . 57 22 4 . 17 . 19 . 48 3 9 Explosive . | . . . . . . . . . . . . . . . . . . Electromagnetic 23 | . . . . . . . . 7 . . . . 16 . . . . Robot Hit Streak 32 | . 3 25 3 32 16 10 15 6 1 . 3 . 6 . 5 1 3 Robot Miss Streak 8 | . 6 6 7 4 3 3 4 4 5 . 8 . 3 . 3 1 3 Penetration Max 1 | . . . . . . . . . 1 . . . 1 . . . . Secondary Targets 13 | . 4 1 1 2 2 . 1 . 1 . 1 . . . . . . Max Gunslinging Chain 1 | . 1 1 1 1 1 . 1 . 1 . 1 . . . . . . Shots Hit Robots 563 | . 19 64 6 53 99 44 98 12 3 . 26 . 65 5 51 1 17 Core Hits 239 | . 9 39 3 20 36 19 46 4 3 . 13 . 26 . 17 . 4 Critical Kills 4 | . . 1 . . 1 . 1 . . . . . 1 . . . . Critical Parts Destroyed 11 | . . 1 . 1 2 . . . . . . . 4 . 2 . 1 Critical Strikes 21 | . . 2 . 1 3 . 1 . . . 5 . 5 . 3 . 1 Burn 1 | . . . . . . . . . . . 1 . . . . . . Meltdown 1 | . . . . . . . 1 . . . . . . . . . . Destroy 10 | . . 2 . 1 2 . . . . . . . 5 . . . . Smash 4 | . . . . . 1 . . . . . . . . . 2 . 1 Sever 3 | . . . . . . . . . . . 2 . . . 1 . . Impale 2 | . . . . . . . . . . . 2 . . . . . . Melee Attacks 123 | . . . . . 6 1 . . . . 22 7 48 7 23 . 9 Impact 66 | . . . . . 6 1 . . . . . 7 34 . 9 . 9 Slashing 40 | . . . . . . . . . . . 5 . 14 7 14 . . Piercing 17 | . . . . . . . . . . . 17 . . . . . . Sneak Attacks 13 | . . . . . 1 . . . . . 5 . 1 . 6 . . Combat Hostiles 1 | . . . . . . . . . . . . . 1 . . . . Follow-up Attacks . | . . . . . . . . . . . . . . . . . . Damage Inflicted 12415 | . 166 878 84 817 1555 723 2378 269 79 . 641 . 2090 226 1998 30 481 Guns 8277 | . 166 721 84 798 1462 723 2378 269 79 . 177 . 260 . 895 30 235 Cannons 946 | . . . . . . . . . . . . . 946 . . . . Explosions 154 | . . 154 . . . . . . . . . . . . . . . Melee 2979 | . . . . . 66 . . . . . 464 . 884 226 1103 . 236 Ramming 59 | . . 3 . 19 27 . . . . . . . . . . . 10 Kinetic 6088 | . 166 721 84 798 1462 723 1238 . 61 . 37 . 692 . . . 106 Thermal 2768 | . . . . . . . 1140 156 18 . 140 . 260 . 895 30 129 Explosive . | . . . . . . . . . . . . . . . . . . Electromagnetic 521 | . . 154 . . . . . 113 . . . . 254 . . . . Impact 1179 | . . . . . 66 . . . . . . . 460 . 417 . 236 Slashing 1498 | . . . . . . . . . . . 162 . 424 226 686 . . Piercing 302 | . . . . . . . . . . . 302 . . . . . . Highest Corruption 22 | . . 2 2 . . 4 1 1 1 1 5 5 12 16 22 20 2 Average Corruption 5 | . . 1 2 . . 3 1 1 1 1 5 5 3 12 18 19 1 Corruption Purged 20 | . . . . . . . . . . 1 . . 5 . 14 . . Corruption Blocked . | . . . . . . . . . . . . . . . . . . Effects 82 | . . 2 8 . . 7 3 1 1 . 2 1 12 5 34 6 . Message Errors 11 | . . . . . . 3 1 . . . . . 3 . 3 1 . Matter Fused 23 | . . 1 3 . . 2 . . 1 . . . 2 1 12 1 . Heat Flow Errors 13 | . . 1 3 . . . 1 . . . 1 . 2 . 5 . . Energy Discharges 14 | . . . 1 . . . . . . . . 1 1 2 8 1 . Parts Rejected 1 | . . . . . . . . . . . 1 . . . . . . Parts Fused 1 | . . . . . . 1 . . . . . . . . . . . Data Loss (minor) 8 | . . . . . . 1 1 1 . . . . 2 1 2 . . Data Loss (major) 2 | . . . 1 . . . . . . . . . 1 . . . . Misfires 2 | . . . . . . . . . . . . . . . . 2 . Alerts 1 | . . . . . . . . . . . . . . . 1 . . Misdirections 3 | . . . . . . . . . . . . . . 1 1 1 . Weapon Failures 3 | . . . . . . . . . . . . . 1 . 2 . . Overload Shots . | . . . . . . . . . . . . . . . . . . Overflow Damage 535 | . . . . . 66 . . . . . 1 . 114 . 275 . 79 Projectiles 3 | . . . . . . . . . . . . . 3 . . . . Explosions . | . . . . . . . . . . . . . . . . . . Melee 532 | . . . . . 66 . . . . . 1 . 111 . 275 . 79 Knockbacks 9 | . . . . . . . . . . . . . 6 . 2 . 1 Impact 4 | . . . . . . . . . . . . . 1 . 2 . 1 Kinetic 5 | . . . . . . . . . . . . . 5 . . . . Secondary . | . . . . . . . . . . . . . . . . . . Self-Inflicted Damage 85 | . . 81 . . . . . . . . . . . . . . 4 Shots 2 | . . 2 . . . . . . . . . . . . . . . Rammed 2 | . . . . . . . . . . . . . . . . . 2 Targets Rammed 7 | . . 1 . 2 2 . . . . . . . . . . . 2 Kicked 5 | . . 1 . 2 2 . . . . . . . . . . . . Crushed . | . . . . . . . . . . . . . . . . . . Highest Temperature 553 | . . 242 98 22 17 43 325 553 95 . 405 . 336 . 217 52 229 Average Temperature 129 | . . 48 51 12 12 19 108 210 48 . 228 . 73 . 74 23 99 Received Heat Transfer 3180 | . . 249 . 414 423 216 306 81 . . 193 . 581 342 216 . 159 Effects 28 | . . . . . . . 6 8 . . 8 . 3 . . . 3 Shutdowns 3 | . . . . . . . . 1 . . 2 . . . . . . Energy Bleed 8 | . . . . . . . 2 1 . . 4 . 1 . . . . Interference 14 | . . . . . . . 3 5 . . 1 . 2 . . . 3 Short Circuit 2 | . . . . . . . . 1 . . 1 . . . . . . Damage (minor) 1 | . . . . . . . 1 . . . . . . . . . . Siege Activations . | . . . . . . . . . . . . . . . . . . Robots Corrupted 2 | . . . . . . . . . . . . . 2 . . . . Combat Hostiles 2 | . . . . . . . . . . . . . 2 . . . . Parts Fried 7 | . . . . . 1 . . . . . . . . . 5 . 1 Impact Corruptions 15 | . . . . . 2 . . . . . . . 3 . 8 . 2 Robots Melted 1 | . . . . . . . 1 . . . . . . . . . . Combat Hostiles 1 | . . . . . . . 1 . . . . . . . . . . Parts Melted 4 | . . . . . . . 3 . . . . . . . 1 . . Heat Transferred 4107 | . . . . . . . 1554 296 37 . 370 . 444 . 1184 37 185 Parts Sabotaged . | . . . . . . . . . . . . . . . . . . Parts Stolen . | . . . . . . . . . . . . . . . . . . Parts Stripped . | . . . . . . . . . . . . . . . . . . Power Chain Reactions 1 | . . 1 . . . . . . . . . . . . . . . Alert | -11 -10 -9 -9 -8 -8 -8 -6 -6 -6 -6 -5 -5 -5 -5 -5 -5 -4 ------- Run | Yrd Mat Mat Min Mat Sto Rec Fac Low Low Dat Pro Fac Ext Cet Arc Hub Fac Peak Influence 796 | . 190 338 191 191 305 163 293 . . . . 796 471 252 206 45 125 Initial 750 | . . 79 106 . . 118 264 . . . . 750 66 237 56 11 19 Average 179 | . 95 223 164 90 83 102 171 . . . . 529 302 189 77 30 18 Maximum Alert Level 3 | . . 1 . . 1 . 1 . . . . 3 2 1 1 . . Low Security (%) 71 | . 100 32 100 100 89 100 78 . . . . 4 27 56 93 100 100 Level 1 17 | . . 67 . . 10 . 21 . . . . 23 34 44 6 . . Level 2 7 | . . . . . . . . . . . . 35 38 . . . . Level 3 3 | . . . . . . . . . . . . 35 . . . . . Level 4 . | . . . . . . . . . . . . . . . . . . Level 5 . | . . . . . . . . . . . . . . . . . . High Security . | . . . . . . . . . . . . . . . . . . Max Security . | . . . . . . . . . . . . . . . . . . Squads Dispatched 21 | . 1 1 . . 2 . 6 . . . . 3 4 . . . 4 Investigation 6 | . . 1 . . 1 . 1 . . . . . 1 . . . 2 Extermination 3 | . . . . . . . 1 . . . . 1 . . . . 1 Reinforcement 9 | . 1 . . . 1 . 1 . . . . 2 3 . . . 1 Assault . | . . . . . . . . . . . . . . . . . . Garrison 3 | . . . . . . . 3 . . . . . . . . . . Intercept . | . . . . . . . . . . . . . . . . . . Searches Triggered 2 | . . . . . . . . . . . . 2 . . . . . Construction Impeded 1 | . . . . . . . . . . . . . 1 . . . . Haulers Reinforced . | . . . . . . . . . . . . . . . . . . Active Scanning Responses . | . . . . . . . . . . . . . . . . . . Cargo Convoy Interrupts . | . . . . . . . . . . . . . . . . . . Stealth | -11 -10 -9 -9 -8 -8 -8 -6 -6 -6 -6 -5 -5 -5 -5 -5 -5 -4 --------- Run | Yrd Mat Mat Min Mat Sto Rec Fac Low Low Dat Pro Fac Ext Cet Arc Hub Fac Distress Signals 10 | . 1 3 . . 1 . 1 . . . . . 4 . . . . Communications Jammed 6 | . . . . . . . 6 . . . . . . . . . . Distress Signals . | . . . . . . . . . . . . . . . . . . Times Spotted 221 | . 10 18 3 11 23 6 28 11 6 . 22 . 35 5 8 4 31 Peak Tracking Total 20 | . 7 5 3 6 5 4 7 5 3 . 6 1 7 5 2 4 20 Tactical Retreats 18 | . 1 1 . 1 1 . . 5 . . 2 . 4 . . 1 2 Traps | -11 -10 -9 -9 -8 -8 -8 -6 -6 -6 -6 -5 -5 -5 -5 -5 -5 -4 ------- Run | Yrd Mat Mat Min Mat Sto Rec Fac Low Low Dat Pro Fac Ext Cet Arc Hub Fac Traps Triggered 6 | . . . . . 1 . . . . . . . 5 . . . . Indirectly . | . . . . . . . . . . . . . . . . . . Trap Hack Attempts . | . . . . . . . . . . . . . . . . . . Triggered . | . . . . . . . . . . . . . . . . . . Disarmed . | . . . . . . . . . . . . . . . . . . Reprogrammed 1 | . 1 . . . . . . . . . . . . . . . . Reused . | . . . . . . . . . . . . . . . . . . Traps Extracted . | . . . . . . . . . . . . . . . . . . Installed . | . . . . . . . . . . . . . . . . . . Triggered 1 | . . . . . . . . . . . 1 . . . . . . Machines | -11 -10 -9 -9 -8 -8 -8 -6 -6 -6 -6 -5 -5 -5 -5 -5 -5 -4 ---------- Run | Yrd Mat Mat Min Mat Sto Rec Fac Low Low Dat Pro Fac Ext Cet Arc Hub Fac Machines Disabled 11 | . . 1 1 . 3 . 2 . . . . . 1 . 3 . . Max in Single Turn 1 | . . 1 1 . 1 . 1 . . . . . 1 . 1 . . Energy Cycler 1 | . . . . . . . . . . . . . 1 . . . . Machines Repaired . | . . . . . . . . . . . . . . . . . . Machines Dismantled 3 | . . . . . 1 . . . . . . . 2 . . . . Machines Sabotaged . | . . . . . . . . . . . . . . . . . . Overloaded Fab Kills . | . . . . . . . . . . . . . . . . . . Hacking | -11 -10 -9 -9 -8 -8 -8 -6 -6 -6 -6 -5 -5 -5 -5 -5 -5 -4 --------- Run | Yrd Mat Mat Min Mat Sto Rec Fac Low Low Dat Pro Fac Ext Cet Arc Hub Fac Machines Accessed 39 | . 3 2 . 1 6 8 3 . 2 4 . 4 4 . . . 2 Terminals 24 | . 3 2 . . 6 5 2 . . . . 2 4 . . . . Fabricators 3 | . . . . . . . 1 . . . . 1 . . . . 1 Repair Stations . | . . . . . . . . . . . . . . . . . . Recycling Units 4 | . . . . 1 . 3 . . . . . . . . . . . Scanalyzers 2 | . . . . . . . . . . . . 1 . . . . 1 Garrison Access . | . . . . . . . . . . . . . . . . . . Total Hacks 121 | . 10 6 . 3 15 23 8 . 6 28 . 7 9 . . . 6 Successful 80 | . 7 1 . 1 4 13 6 . 6 28 . 5 6 . . . 3 Failed 41 | . 3 5 . 2 11 10 2 . . . . 2 3 . . . 3 Catastrophic 5 | . . . . . 2 1 . . . . . 1 1 . . . . Database Lockouts . | . . . . . . . . . . . . . . . . . . Manual 26 | . 5 6 . . 5 6 2 . . . . 2 . . . . . Terminals 69 | . 10 6 . . 15 20 6 . . . . 3 9 . . . . Fabricators 6 | . . . . . . . 2 . . . . 2 . . . . 2 Repair Stations . | . . . . . . . . . . . . . . . . . . Recycling Units 6 | . . . . 3 . 3 . . . . . . . . . . . Scanalyzers 6 | . . . . . . . . . . . . 2 . . . . 4 Garrison Access . | . . . . . . . . . . . . . . . . . . Terminal Hacks 56 | . 4 . . . 2 7 2 . 6 28 . 1 6 . . . . Record 16 | . . . . . . . . . 5 11 . . . . . . . Part Schematic 14 | . . . . . . 4 1 . . 9 . . . . . . . Robot Schematic 5 | . . . . . . . . . . 5 . . . . . . . Prototype ID Bank 9 | . 1 . . . . 2 . . . 3 . 1 2 . . . . Open Door 4 | . . . . . 2 . . . 1 . . . 1 . . . . Alert Level 3 | . . . . . . 1 . . . . . . 2 . . . . Unreport Threat 1 | . . . . . . . 1 . . . . . . . . . . Locate Traps 1 | . . . . . . . . . . . . . 1 . . . . Reprogram Traps 1 | . 1 . . . . . . . . . . . . . . . . Recall Reinforcements 1 | . 1 . . . . . . . . . . . . . . . . Hauler Manifests 1 | . 1 . . . . . . . . . . . . . . . . Fabricator Hacks 5 | . . . . . . . 2 . . . . 1 . . . . 2 Load Schematic 2 | . . . . . . . 1 . . . . . . . . . 1 Build 3 | . . . . . . . 1 . . . . 1 . . . . 1 Repair Station Hacks . | . . . . . . . . . . . . . . . . . . Recycling Unit Hacks 1 | . . . . 1 . . . . . . . . . . . . . Retrieve Components 1 | . . . . 1 . . . . . . . . . . . . . Scanalyzer 3 | . . . . . . . . . . . . 2 . . . . 1 Insert Component 2 | . . . . . . . . . . . . 1 . . . . 1 Analyze 1 | . . . . . . . . . . . . 1 . . . . . Garrison Access Hacks . | . . . . . . . . . . . . . . . . . . Unauthorized Hacks 15 | . 3 1 . . 2 6 2 . . . . 1 . . . . . Terminals 12 | . 3 1 . . 2 3 2 . . . . 1 . . . . . Botnet 12 | . 3 1 . . 2 3 2 . . . . 1 . . . . . Fabricators . | . . . . . . . . . . . . . . . . . . Repair Stations . | . . . . . . . . . . . . . . . . . . Recycling Units 3 | . . . . . . 3 . . . . . . . . . . . Tunnel 3 | . . . . . . 3 . . . . . . . . . . . Scanalyzers . | . . . . . . . . . . . . . . . . . . Garrison Access . | . . . . . . . . . . . . . . . . . . Data Cores Recovered . | . . . . . . . . . . . . . . . . . . Used . | . . . . . . . . . . . . . . . . . . Hacking Detections 25 | . 1 2 . . 5 5 3 . . . . 3 4 . . . 2 Full Trace Events 10 | . 1 1 . . 2 2 1 . . . . . 1 . . . 2 Feedback Events 2 | . . 1 . . . . . . . . . . . . . . 1 Corruption 1 | . . 1 . . . . . . . . . . . . . . . Hackware Fried 1 | . . . . . . . . . . . . . . . . . 1 Feedback Blocked . | . . . . . . . . . . . . . . . . . . Robot Schematics Acquired 5 | . . . . . . . . . . 5 . . . . . . . Robots Built . | . . . . . . . . . . . . . . . . . . Authchips . | . . . . . . . . . . . . . . . . . . Time . | . . . . . . . . . . . . . . . . . . Total Robot Build Rating . | . . . . . . . . . . . . . . . . . . Part Schematics Acquired 15 | . . . . . . 4 1 . . 9 . 1 . . . . . Parts Built 3 | . . . . . . . 2 . . . . . . . . . 1 Authchips . | . . . . . . . . . . . . . . . . . . Time 192 | . . . . . . . 84 . . . . 58 . . . . 50 Total Part Build Rating 13 | . . . . . . . 8 . . . . . . . . . 5 Parts Repaired . | . . . . . . . . . . . . . . . . . . Time . | . . . . . . . . . . . . . . . . . . Parts Recycled . | . . . . . . . . . . . . . . . . . . Recycled Matter . | . . . . . . . . . . . . . . . . . . Retrieved Matter . | . . . . . . . . . . . . . . . . . . Retrieved Components 1 | . . . . 1 . . . . . . . . . . . . . Parts Scanalyzed 2 | . . . . . . . . . . . . 1 . . . . 1 Part Schematics Acquired 1 | . . . . . . . . . . . . 1 . . . . . Parts Damaged . | . . . . . . . . . . . . . . . . . . Bothacking | -11 -10 -9 -9 -8 -8 -8 -6 -6 -6 -6 -5 -5 -5 -5 -5 -5 -4 ------------ Run | Yrd Mat Mat Min Mat Sto Rec Fac Low Low Dat Pro Fac Ext Cet Arc Hub Fac Used RIF Installer . | . . . . . . . . . . . . . . . . . . Robots Hacked . | . . . . . . . . . . . . . . . . . . Non-combat . | . . . . . . . . . . . . . . . . . . Combat . | . . . . . . . . . . . . . . . . . . Robot Hacks Applied . | . . . . . . . . . . . . . . . . . . Relay Couplers Released . | . . . . . . . . . . . . . . . . . . Fabnet Peak Effective % . | . . . . . . . . . . . . . . . . . . Robots Rewired . | . . . . . . . . . . . . . . . . . . Allies Hacked . | . . . . . . . . . . . . . . . . . . Hacks Repelled . | . . . . . . . . . . . . . . . . . . Allies | -11 -10 -9 -9 -8 -8 -8 -6 -6 -6 -6 -5 -5 -5 -5 -5 -5 -4 -------- Run | Yrd Mat Mat Min Mat Sto Rec Fac Low Low Dat Pro Fac Ext Cet Arc Hub Fac Total Allies 16 | . . . . . . . . . 3 . 1 . 12 . . . . Largest Group 10 | . . . . . . . . . 3 . 1 . 10 . . . . Highest-Rated Group 294 | . . . . . . . . . 60 . 96 . 294 . . . . Highest-Rated Ally 96 | . . . . . . . . . 20 . 96 . 39 . . . . Total Orders . | . . . . . . . . . . . . . . . . . . Ally Attacks 121 | . . . . . . . . . 3 . 8 . 110 . . . . Total Damage 2636 | . . . . . . . . . 107 . 191 . 2338 . . . . Kills 18 | . . . . . . . . . 1 . 2 . 15 . . . . Allies Corrupted . | . . . . . . . . . . . . . . . . . . Allies Melted . | . . . . . . . . . . . . . . . . . . Intel | -11 -10 -9 -9 -8 -8 -8 -6 -6 -6 -6 -5 -5 -5 -5 -5 -5 -4 ------- Run | Yrd Mat Mat Min Mat Sto Rec Fac Low Low Dat Pro Fac Ext Cet Arc Hub Fac Robot Analysis Total . | . . . . . . . . . . . . . . . . . . Derelict Logs Recovered 6 | . . . 2 . . . . 1 1 . 2 . . . . . . Drone Launches . | . . . . . . . . . . . . . . . . . . Drone Recoveries . | . . . . . . . . . . . . . . . . . . Exploration | -11 -10 -9 -9 -8 -8 -8 -6 -6 -6 -6 -5 -5 -5 -5 -5 -5 -4 ------------- Run | Yrd Mat Mat Min Mat Sto Rec Fac Low Low Dat Pro Fac Ext Cet Arc Hub Fac Turns Passed 10215 | . 266 767 459 465 1025 936 1486 402 359 100 428 841 1014 125 723 88 731 Spaces Moved 5861 | 1 114 305 232 188 493 550 823 309 346 99 332 563 590 86 313 161 356 Core 351 | . . . . . 6 6 . . . . . . . . . . 339 Treads 459 | . . . . . . 138 180 . . . . . . . 138 . 3 Legs 1821 | 1 114 305 232 188 487 40 150 . . . . . 176 86 42 . . Wheels 488 | . . . . . . 366 122 . . . . . . . . . . Hover 2222 | . . . . . . . 304 309 346 99 332 524 . . 133 161 14 Flight 520 | . . . . . . . 67 . . . . 39 414 . . . . Fastest Speed 48 | 120 120 190 190 120 120 96 70 74 74 74 74 52 52 111 48 48 48 Average Speed 119 | 120 182 190 190 167 137 139 105 74 74 74 82 128 77 111 133 48 154 Slowest Speed 600 | 120 190 260 190 260 600 500 160 74 74 74 94 134 565 111 160 48 600 Overloaded Moves . | . . . . . . . . . . . . . . . . . . Propulsion Burnouts . | . . . . . . . . . . . . . . . . . . Robots Hopped . | . . . . . . . . . . . . . . . . . . Cave-ins Triggered 3 | . . . . . . . . . . . 1 1 1 . . . . Exploration Rate (%) 46 | 2 28 33 64 16 76 99 17 53 49 74 58 13 59 64 100 23 16 Regions Visited 17 Branch Regions 11 Pre-discovered Areas 4 | . . . . . . 3 . . . 1 . . . . . . . Known Exits Taken 6 | . . . . . . . 1 1 1 1 1 . . . . 1 . Unknown Exits Taken 11 | 1 1 1 1 1 1 1 . . . . . 1 1 1 1 . . Scrap Searched 4 | . . . 1 . . . . 2 1 . . . . . . . . Spaces Dug 37 | . . . . . . 1 . . . . 1 7 27 . . . 1 Terrain Destroyed 68 | . . 6 . . . 1 3 2 . . 2 7 39 . 2 2 4 Melee 16 | . . . . . . 1 . . . . 1 7 6 . . . 1 Projectile 46 | . . . . . . . 3 2 . . 1 . 33 . 2 2 3 AOE 6 | . . 6 . . . . . . . . . . . . . . . Terrain Rammed . | . . . . . . . . . . . . . . . . . . Walls Destroyed . | . . . . . . . . . . . . . . . . . . Machines Disabled . | . . . . . . . . . . . . . . . . . . Actions | -11 -10 -9 -9 -8 -8 -8 -6 -6 -6 -6 -5 -5 -5 -5 -5 -5 -4 --------- Run | Yrd Mat Mat Min Mat Sto Rec Fac Low Low Dat Pro Fac Ext Cet Arc Hub Fac Total 8095 | . 139 406 241 268 668 654 1346 456 438 126 424 666 958 105 527 170 503 Wait 1217 | . . 21 . 21 12 41 401 127 82 24 37 83 189 7 75 . 97 Move 5844 | . 113 304 231 187 492 549 822 308 345 98 331 562 589 85 312 160 356 Hop . | . . . . . . . . . . . . . . . . . . Pick Up 95 | . 2 9 1 1 20 5 11 1 2 1 3 3 13 . 15 2 6 Fast Attach 54 | . 2 3 1 6 6 . 3 . . . 2 2 3 . 20 3 3 Attach 62 | . . 1 . 4 5 2 5 1 1 1 4 6 7 6 12 . 7 Detach 35 | . 1 1 . . 1 . 4 . . 1 4 1 8 . 8 1 5 Swap 33 | . . 7 1 3 9 3 1 2 1 . . . 3 . 1 . 2 Drop 86 | . . 10 2 1 22 7 7 1 1 1 4 2 7 . 12 3 6 Fire 497 | . 21 49 5 43 85 44 92 16 6 . 17 . 59 . 49 1 10 Melee 123 | . . . . . 6 1 . . . . 22 7 48 7 23 . 9 Ram 2 | . . . . . . . . . . . . . . . . . 2 Kick 5 | . . 1 . 2 2 . . . . . . . . . . . . Crush . | . . . . . . . . . . . . . . . . . . Escape Stasis 16 | . . . . . . . . . . . . . 16 . . . . Rewire 2 | . . . . . . 2 . . . . . . . . . . . Trap . | . . . . . . . . . . . . . . . . . . Miscellaneous 24 | . . . . . 8 . . . . . . . 16 . . . . Route ------- -11/Scrapyard -10/Materials -9/Materials (discovered 3 exits: *Mat / [*Min x2]) -9/Mines -8/Materials -8/Storage -8/Recycling -6/Factory -6/Lower Caves -6/Lower Caves (discovered 2 exits: *Fac / *Dat) -6/Data Miner -5/Proximity Caves -5/Factory -5/Extension (discovered 2 exits: *Fac / [*Cet]) -5/Cetus -5/Archives (discovered 3 exits: *Fac / [*Hub x2]) -5/Hub_04(d) -4/Factory (discovered 1 exit: Res) History --------- Turn | Location | Event 1 | -11/Scrapyard | Discovered new exit (range 0) 1 | -11/Scrapyard | Entered Materials 239 | -10/Materials | Discovered new exit (range 16) 267 | -10/Materials | Entered another Materials area 267 | -9/Materials | Evolved 2 slots: Utility x2 309 | -9/Materials | Build established: Mutant 874 | -9/Materials | Build established: Scavenger-Mutant 949 | -9/Materials | Discovered new exit (range 16) 1017 | -9/Materials | Discovered new exit (range 9) 1031 | -9/Materials | Discovered new exit (range 12) 1034 | -9/Materials | Entered Mines 1205 | -9/Mines | Learned Materials emergency access door positions 1438 | -9/Mines | Learned Materials emergency access door positions 1478 | -9/Mines | Discovered new exit (range 7) 1493 | -9/Mines | Entered Materials 1493 | -8/Materials | Evolved 2 slots: Propulsion x2 1692 | -8/Materials | Lost 7 parts (1p4n2w) 1805 | -8/Materials | Discovered new exit (range 7) 1958 | -8/Materials | Entered Storage 2121 | -8/Storage | Lost 5 parts (1p2n1u1w) 2517 | -8/Storage | Build established: Mutant 2675 | -8/Storage | Core integrity fell below 50% 2896 | -8/Storage | Destroyed 9 combat bots 2902 | -8/Storage | Lost 3 parts (2n1w) 2979 | -8/Storage | Used back door to open Recycling access 2979 | -8/Storage | Discovered new exit (range 3) 2983 | -8/Storage | Entered Recycling 2991 | -8/Recycling | Found Scrap Engine 3328 | -8/Recycling | Discovered new exit (range 15) 3445 | -8/Recycling | Core integrity fell below 20% 3471 | -8/Recycling | Lost 4 parts (3n1w) 3919 | -8/Recycling | Entered Factory 3919 | -6/Factory | Evolved 4 slots: Power x1, Utility x3 4188 | -6/Factory | Garrison activated, responded to threat 4248 | -6/Factory | Destroyed 7 combat bots 4379 | -6/Factory | Fabricated System Restoration Module (x2) 4445 | -6/Factory | Build established: Construct 5228 | -6/Factory | Discovered new exit (range 16) 5388 | -6/Factory | Identified exit to Lower Caves 5405 | -6/Factory | Entered Lower Caves 5636 | -6/Lower Caves | Learned Factory interactive machine intel 5676 | -6/Lower Caves | Attracted the attention of an 0b10 outpost 5800 | -6/Lower Caves | Discovered new exit (range 11) 5807 | -6/Lower Caves | Identified exit to Lower Caves 5807 | -6/Lower Caves | Entered another Lower Caves area 5845 | -6/Lower Caves | Discovered new exit (range 3) 5846 | -6/Lower Caves | Identified exit to Factory 5873 | -6/Lower Caves | Learned 4 Factory zone layouts 5965 | -6/Lower Caves | Learned Factory trap positions 5965 | -6/Lower Caves | Learned Research emergency access door positions 5966 | -6/Lower Caves | A Commander dispatched an escort 6130 | -6/Lower Caves | Encountered a Warlord checkpoint 6152 | -6/Lower Caves | Attracted the attention of an 0b10 checkpoint 6164 | -6/Lower Caves | Discovered new exit (range 5) 6165 | -6/Lower Caves | Identified exit to Data Miner 6166 | -6/Lower Caves | Entered Data Miner 6192 | -6/Data Miner | Discovered new exit (range 6) 6209 | -6/Data Miner | Met Data Miner 6224 | -6/Data Miner | Learned location of Section 7 (-2) 6224 | -6/Data Miner | Acquired the access code to Warlord's prototype stash 6235 | -6/Data Miner | Received God Mode back door access code from Data Miner 6265 | -6/Data Miner | Identified exit to Proximity Caves 6266 | -6/Data Miner | Entered Proximity Caves 6270 | -5/Proximity Caves | Spotter reported a threat 6270 | -5/Proximity Caves | Spotter reported a threat 6281 | -5/Proximity Caves | Spotted B-75 Beast 6323 | -5/Proximity Caves | Spotter reported a threat 6376 | -5/Proximity Caves | Core integrity fell below 50% 6391 | -5/Proximity Caves | Learned Factory stockpile data 6397 | -5/Proximity Caves | Spotter reported a threat 6398 | -5/Proximity Caves | Learned Factory emergency access door positions 6544 | -5/Proximity Caves | Spotter reported a threat 6547 | -5/Proximity Caves | Attracted the attention of an 0b10 checkpoint 6578 | -5/Proximity Caves | Escorted by Enhanced Grunt 6607 | -5/Proximity Caves | Crushed by falling debris 6607 | -5/Proximity Caves | Core integrity fell below 20% 6638 | -5/Proximity Caves | Lost 4 parts (2u2w) 6687 | -5/Proximity Caves | Discovered exit to Factory (range 10) 6694 | -5/Proximity Caves | Entered Factory 6694 | -5/Factory | Evolved 2 slots: Propulsion x1, Utility x1 6696 | -5/Factory | Loaded intel: 71 trap records 6699 | -5/Factory | Loaded intel: 54 interactive machine locations 6994 | -5/Factory | Search patrols dispatched 7294 | -5/Factory | Search patrols dispatched 7462 | -5/Factory | Crushed by falling debris 7493 | -5/Factory | Lost 3 parts (3u) 7501 | -5/Factory | Discovered new exit (range 11) 7535 | -5/Factory | Entered Extension 7754 | -5/Extension | Rescued a captive Derelict 7755 | -5/Extension | Rescued a captive Derelict 7761 | -5/Extension | Rescued a captive Derelict 7762 | -5/Extension | Rescued a captive Derelict 7768 | -5/Extension | Rescued a captive Derelict 7768 | -5/Extension | Rescued a captive Derelict 7774 | -5/Extension | Rescued a captive Derelict 7777 | -5/Extension | Rescued a captive Derelict 7821 | -5/Extension | Rescued a captive Derelict 7825 | -5/Extension | Rescued a captive Derelict 7949 | -5/Extension | Lost 10 allies 7968 | -5/Extension | Rescued a captive Derelict 7968 | -5/Extension | Rescued a captive Derelict 8023 | -5/Extension | Lost 3 parts (1p2u) 8280 | -5/Extension | Energy Cycler disabled 8280 | -5/Extension | Rescued a captive Derelict 8281 | -5/Extension | Rescued a captive Derelict 8281 | -5/Extension | Rescued a captive Derelict 8282 | -5/Extension | Rescued a captive Derelict 8294 | -5/Extension | Rescued a captive Derelict 8399 | -5/Extension | Discovered new exit (range 10) 8400 | -5/Extension | Discovered new exit (range 6) 8403 | -5/Extension | Lost 3 parts (2p1u) 8462 | -5/Extension | Crushed by falling debris 8462 | -5/Extension | System corruption reached 10% 8549 | -5/Extension | Entered Cetus 8565 | -5/Cetus | Spotted Cetus Guard 8565 | -5/Cetus | Spotted Cetus Guard 8565 | -5/Cetus | Spotted Cetus Guard 8565 | -5/Cetus | Spotted Cetus Guard 8613 | -5/Cetus | Core integrity fell below 50% 8650 | -5/Cetus | Discovered new exit (range 22) 8669 | -5/Cetus | Lost 11 parts (2n6u3w) 8674 | -5/Cetus | Entered Archives 8866 | -5/Archives | Lost 4 parts (1p2u1w) 8933 | -5/Archives | Discovered new exit (range 14) 9151 | -5/Archives | Build established: Scavenger-Mutant 9176 | -5/Archives | Discovered new exit (range 19) 9190 | -5/Archives | Discovered new exit (range 13) 9343 | -5/Archives | Unable to access archive contents 9397 | -5/Archives | Entered Hub_04(d) 9464 | -5/Hub_04(d) | Core integrity fell below 20% 9465 | -5/Hub_04(d) | Discovered new exit (range 20) 9484 | -5/Hub_04(d) | Identified exit to Factory 9485 | -5/Hub_04(d) | Entered Factory 9485 | -4/Factory | Evolved 2 slots: Propulsion x1, Weapon x1 9486 | -4/Factory | Identified exit to Research 9540 | -4/Factory | Fabricated Lgt. Regenerative Plating (x1) 9626 | -4/Factory | Lost 9 parts (1p6n1u1w) 9852 | -4/Factory | Build established: Hacker-Mutant 10076 | -4/Factory | Found Quantum Capacitor 10090 | -4/Factory | Imp. System Shield fried by hacking feedback 10190 | -4/Factory | Core integrity fell below 50% 10212 | -4/Factory | Core integrity fell below 20% 10216 | -4/Factory | Destroyed by S-27 Virus with Autogun Last Messages --------------- K-01 Serf cleans the Assembly Bed. Acquired Prototype Device. Identified Particle Accelerator. Slug penetrates Wall. Gravity Neutralizer destroyed. Slug penetrates S-27 Virus. Imp. System Shield destroyed. Penetrated by Slug. Recycling Unit disabled. Dropped Beamcaster. Acquired Unknown Device. Particle Accelerator destroyed. Slammed into P-70 Sage. Imp. Hacking Suite destroyed. Critical hit (Burn: +37). Penetrated by Slug. Slammed into H-71 Marshal. H-71 Marshal calls for reinforcements. ALERT: Hostile activity reported, dispatching reinforcements to area. G-67 Veteran knocked back. Map ----- +----------------------------------------------------+ | ????????+ ########## #?????? #? | | ????????####+####+###???####### ##????? #? | | ????????????????????????# # ####### #? | | ????????????????????????# """ # ! #? | | ????????????????????????# """ # #? | | ????????????????????????# """ # """ #? | | ????????????????????????# # ""F"" """ #? | | ????????????????????????# """ # "" "" """ #? | | ????????????????????????# """ + """ #? | | ????????????????????????# """ # #? | | ????????????????????????# # [ #? | | ????????????????????????# ## #? | | ????????????????????????# ## ######## #? | | ????????????????????????# ## #???????? #? | | ????????????????????????######## #????????? #? | | ???????????????????????????????# #?????????? ? #? | | ???????????????????????????????# #???????????????? | | ???????????????????????????????#%#???????????????? | | ???????????????????????????????# #???????????????? | | ??????????????????????????###### ##??????????????? | | ??????##################### sss#???????###????? | | ?????# ^ ##### #????? | | ?????# gg #????? | | ?????+ %g Y #????? | | ?????# k g H #????? | | ?????# @ ##### % #????? | | ???????????#####+########## #????? ##????? | | ??????????????????????????#########??????? #?????? | | ?????????????????????????????????????????????????? | | ?????????????????????????????????????????????????? | | ?????????????????????????????????????????????????? | | ?????????????????????????????????????????????????? | | ?????????????????????????????????????????????????? | | ?????????????????????????????????????????????????? | | ?????????????????????????????????????????????????? | | ?????????????????????????????????????????????????? | | ?????????????????????????????????????????????????? | | ?????????????????????????????????????????????????? | | ?????????????????????????????????????????????????? | | ?????????????????????????????????????????????????? | | ?????????????????????????????????????????????????? | | ?????????????????????????????????????????????????? | | ?????????????????????????????????????????????????? | | ?????????????????????????????????????????????????? | | ?????????????????????????????????????????????????? | | ?????????????????????????????????????????????????? | | ?????????????????????????????????????????????????? | | ?????????????????????????????????????????????????? | | ?????????????????????????????????????????????????? | | ?????????????????????????????????????????????????? | +----------------------------------------------------+ Best States ------------- Heat Dissipation 59 Energy Generation 45 Energy Capacity 714 Matter Stores 450 Matter Capacity 450 Sight Range 22 Robot Scan Range 16 Terrain Scan Range 16 Terrain Scan Density 210 Jamming Range 12 Additional Mass Support 12 Base Temperature (-) 150 EM Shielding 2 Armor Coverage 600 Power Shielding 66 Phase Shifting 5 Evasion (%) 64 Recoil Reduction 5 Particle Charging 25 Offensive Hacking 36 Defensive Hacking 24 Item Schematics ----------------- Imp. Propulsion Shielding | -8/Recycling | Hacked Weapon Cycler | -8/Recycling | Hacked System Restoration Module | -8/Recycling | Hacked Adv. Treads | -8/Recycling | Hacked Phase Cannon | -6/Factory | Hacked Combat Drone Bay | -6/Data Miner | Free Lgt. Regenerative Plating | -6/Data Miner | Free Enh. Flexi-carbon Leg | -6/Data Miner | Free Imp. Matter Compressor | -6/Data Miner | Free Cld. Plasma Rifle | -6/Data Miner | Free Field Propulsion Array | -6/Data Miner | Free Adv. Focal Shield | -6/Data Miner | Free Hardcell Cannon | -6/Data Miner | Free Adv. Weapon Cycler | -6/Data Miner | Free Adv. Energy Well | -5/Factory | Scanalyzed Robot Schematics ------------------ B-48 Gladiator | -6/Data Miner | Free R-10 Processor | -6/Data Miner | Free I-47 Archangel | -6/Data Miner | Free S-27 Virus | -6/Data Miner | Free M-36 Artificer | -6/Data Miner | Free Fabricated ------------ System Restoration Module | x2 | -6/Factory Lgt. Regenerative Plating | x1 | -4/Factory Alien Tech Used ----------------- None Achievements -------------- None Challenges ------------ None Game ------ Seed SkeletonAssemblyStabilizer Manual? 0 Play Time 02:37:07 Cumulative 96.7 hours Start 2024.04.28 @ 19:00:44 End 2024.04.28 @ 22:39:22 Sessions 1 Manual Loads 0 Difficulty Rogue Special Mode None Game No. 189 Rogue 187 Adventurer 2 Explorer 0 Win Type - Total 3 Types 2/0/0/1/0/0/0/0/0 Lore% 54 Gallery% 54 Achievement% 41 Wizard Run 0 Options --------- Layout 0 ASCII 0 Keyboard 1 Movement Numpad Keybinds 1 Fullscreen 2 Font 18/SmallcapsGlow Map View 76x50 Zoom Use 0% Tactical HUD 1 Map Filters NONE Filters NONE Steam 1 RUN: 72428719-736f-49ad-b3f4-5d70929d85a8